[Event "26th Hit Open-A 2022"]
[Site "Nova Gorica"]
[Date "2022.09.15"]
[Round "1.21"]
[White "Brilej, Jaka"]
[Black "Lohia, Sohum"]
[Result "1/2-1/2"]
[ECO "C45"]
[WhiteElo "2329"]
[BlackElo "2185"]
[Annotator "ChessBase"]
[PlyCount "134"]
[EventDate "2022.09.16"]
[EventType "swiss"]
[EventCountry "SLO"]
[SourceTitle "playchess.com"]
[Source "ChessBase"]
[SourceQuality "1"]
[TimeControl "5400+30"]

1. e4 {[%emt 0:00:03]} e5 {[%emt 0:00:06]} 2. Nf3 {[%emt 0:00:20]} Nc6 {[%emt 0:00:07]} 3. d4 {[%emt 0:00:33]} exd4 {[%emt 0:00:15]} 4. Nxd4 {[%emt 0:00:08]} Nf6 {[%emt 0:00:09]} 5. Nxc6 {[%emt 0:00:17]} bxc6 {[%emt 0:00:08]} 6. e5 {[%emt 0:00:08]} Qe7 {[%emt 0:00:06]} 7. Qe2 {[%emt 0:00:07]} Nd5 {[%emt 0:00:07]} 8. c4 {[%emt 0:00:11]} Ba6 {[%emt 0:00:06]} 9. Nd2 {[%emt 0:00:24]} g6 {[%emt 0:13:11]} 10. Nf3 {[%emt 0:00:18]} Bg7 {[%emt 0:02:59]} 11. Bg5 {[%emt 0:00:48]} Qb4+ {[%emt 0:06:38]} 12. Qd2 {[%emt 0:00:51]} Qxd2+ {[%emt 0:00:24]} 13. Kxd2 {[%emt 0:00:07]} Nb6 {[%emt 0:00:46]} 14. b3 {[%emt 0:01:18]} O-O {[%emt 0:01:03]} 15. Re1 {[%emt 0:03:36]} Rfe8 {[%emt 0:03:30]} 16. Bd3 {[%emt 0:06:47]} c5 {[%emt 0:03:19]} 17. Be4 {[%emt 0:10:31]} Rab8 {[%emt 0:00:50]} 18. Bf4 {[%emt 0:00:15]} Bb7 {[%emt 0:10:33]} 19. Bxb7 {[%emt 0:04:20]} Rxb7 {[%emt 0:00:07]} 20. Ng5 {[%emt 0:03:30]} Bh6 {[%emt 0:06:59]} 21. h4 {[%emt 0:06:28]} a5 {[%emt 0:09:48]} 22. h5 {[%emt 0:07:43]} Bxg5 {[%emt 0:01:11]} 23. Bxg5 {[%emt 0:00:07]} a4 {[%emt 0:01:10]} 24. hxg6 {[%emt 0:02:15]} fxg6 {[%emt 0:00:08]} 25. Re3 {[%emt 0:03:41]} axb3 {[%emt 0:01:22]} 26. axb3 {[%emt 0:00:06]} Ra7 {[%emt 0:02:09]} 27. Rc1 {[%emt 0:01:28]} Ra2+ {[%emt 0:02:31]} 28. Rc2 {[%emt 0:00:11]} Rea8 {[%emt 0:00:43]} 29. Rf3 {[%emt 0:00:40]} Rxc2+ {[%emt 0:04:48]} 30. Kxc2 {[%emt 0:00:05]} Rf8 {[%emt 0:01:26]} 31. Rxf8+ {[%emt 0:03:03]} Kxf8 {[%emt 0:00:05]} 32. Bd8 {[%emt 0:00:07]} Na8 {[%emt 0:00:42]} 33. Kd3 {[%emt 0:00:56]} Ke8 {[%emt 0:00:51]} 34. Bg5 {[%emt 0:01:05]} d6 {[%emt 0:13:06]} 35. Ke4 {[%emt 0:02:55]} Kd7 {[%emt 0:02:01]} 36. f4 {[%emt 0:03:56]} Ke6 {[%emt 0:03:13]} 37. g4 {[%emt 0:02:48]} dxe5 {[%emt 0:03:29]} 38. f5+ {[%emt 0:00:07]} gxf5+ {[%emt 0:06:09]} 39. gxf5+ {[%emt 0:00:06]} Kd6 {[%emt 0:00:05]} 40. Bh6 {[%emt 0:01:42]} Ke7 {[%emt 0:02:58]} 41. Kxe5 {[%emt 0:00:23]} Nb6 {[%emt 0:00:08]} 42. Bg5+ {[%emt 0:03:12]} Kf7 {[%emt 0:00:42]} 43. Bd8 {[%emt 0:00:38]} h5 {[%emt 0:00:56]} 44. Kf4 {[%emt 0:03:31]} Nd7 {[%emt 0:00:21]} 45. Bxc7 {[%emt 0:01:19]} Nf6 {[%emt 0:01:00]} 46. Bd6 {[%emt 0:01:18]} Nd7 {[%emt 0:00:23]} 47. Bc7 {[%emt 0:05:02]} Nf6 {[%emt 0:00:36]} 48. Bb6 {[%emt 0:00:10]} Nd7 {[%emt 0:00:15]} 49. Ba5 {[%emt 0:00:07]} Nf6 {[%emt 0:00:47]} 50. Be1 {[%emt 0:02:33]} Nd7 {[%emt 0:00:13]} 51. Bh4 {[%emt 0:02:47]} Nf6 {[%emt 0:00:08]} 52. Ke5 {[%emt 0:01:17]} Ng4+ {[%emt 0:00:21]} 53. Kd6 {[%emt 0:02:19]} Ne3 {[%emt 0:00:23]} 54. Kxc5 {[%emt 0:00:09]} Nxf5 {[%emt 0:00:04]} 55. Bg5 {[%emt 0:01:51]} Ke6 {[%emt 0:00:43]} 56. b4 {[%emt 0:00:13]} Kd7 {[%emt 0:00:39]} 57. b5 {[%emt 0:01:21]} h4 {[%emt 0:00:32]} 58. b6 {[%emt 0:01:51]} h3 {[%emt 0:00:49]} 59. Bf4 {[%emt 0:00:05]} Kc8 {[%emt 0:00:11]} 60. Kc6 {[%emt 0:01:56]} Ne7+ {[%emt 0:00:12]} 61. Kd6 {[%emt 0:01:13]} Nf5+ {[%emt 0:00:19]} 62. Ke6 {[%emt 0:00:29]} Ne3 {[%emt 0:01:14]} 63. c5 {[%emt 0:00:59]} Kb7 {[%emt 0:00:11]} 64. Kd7 {[%emt 0:02:15]} Nd5 {[%emt 0:00:10]} 65. Bc7 {[%emt 0:00:33]} Nxb6+ {[%emt 0:00:12]} 66. cxb6 {[%emt 0:00:09]} h2 {[%emt 0:00:04]} 67. Bxh2 {[%emt 0:00:05]} Kxb6 {[%emt 0:00:02]} 1/2-1/2

[Event "26th Hit Open-A 2022"]
[Site "Nova Gorica"]
[Date "2022.09.15"]
[Round "1.22"]
[White "Gregoric, Andraz"]
[Black "Drazic, Sinisa"]
[Result "0-1"]
[ECO "C03"]
[WhiteElo "2182"]
[BlackElo "2327"]
[Annotator "ChessBase"]
[PlyCount "48"]
[EventDate "2022.09.16"]
[EventType "swiss"]
[EventCountry "SLO"]
[SourceTitle "playchess.com"]
[Source "ChessBase"]
[SourceQuality "1"]
[TimeControl "5400+30"]

1. e4 {[%emt 0:00:02]} e6 {[%emt 0:01:17]} 2. d4 {[%emt 0:00:16]} d5 {[%emt 0:00:47]} 3. Nd2 {[%emt 0:00:06]} Be7 {[%emt 0:00:17]} 4. Bd3 {[%emt 0:00:32]} c5 {[%emt 0:01:31]} 5. dxc5 {[%emt 0:05:53]} Nd7 {[%emt 0:00:51]} 6. Nb3 {[%emt 0:05:39]} dxe4 {[%emt 0:02:51]} 7. Bxe4 {[%emt 0:00:45]} Ngf6 {[%emt 0:00:02]} 8. Bf3 {[%emt 0:02:16]} Qc7 {[%emt 0:00:03]} 9. Ne2 {[%emt 0:12:44]} Nxc5 {[%emt 0:03:21]} 10. Nxc5 {[%emt 0:05:06]} Bxc5 {[%emt 0:03:06]} 11. O-O {[%emt 0:01:10]} Bd7 {[%emt 0:03:09]} 12. Bd2 {[%emt 0:15:39]} Rd8 {[%emt 0:04:11]} 13. Bc3 {[%emt 0:09:33]} h5 {[%emt 0:28:12]} 14. Qc1 {[%emt 0:07:15]} Ng4 {[%emt 0:12:03]} 15. g3 {[%emt 0:11:41]} e5 {[%emt 0:13:41]} 16. h3 {[%emt 0:04:17]} Bc6 {[%emt 0:01:46]} 17. Bxc6+ {[%emt 0:01:55]} Qxc6 {[%emt 0:00:06]} 18. Qg5 {[%emt 0:00:54]} Qf3 {[%emt 0:10:24]} 19. Be1 {[%emt 0:08:22]} Be7 {[%emt 0:04:09]} 20. Qc1 {[%emt 0:00:12]} h4 {[%emt 0:01:24]} 21. c4 {[%emt 0:02:05]} Qxe2 {[%emt 0:03:39]} 22. hxg4 {[%emt 0:00:09]} hxg3 {[%emt 0:01:38]} 23. c5 {[%emt 0:01:18]} Rh1+ {[%emt 0:00:58]} 24. Kxh1 {[%emt 0:00:02]} Qxf1# {[%emt 0:00:05]} 0-1

[Event "26th Hit Open-A 2022"]
[Site "Nova Gorica"]
[Date "2022.09.15"]
[Round "1.23"]
[White "Tisaj, Domen"]
[Black "Leitner, Gerald"]
[Result "1-0"]
[ECO "A77"]
[WhiteElo "2325"]
[BlackElo "2181"]
[Annotator "ChessBase"]
[PlyCount "87"]
[EventDate "2022.09.16"]
[EventType "swiss"]
[EventCountry "SLO"]
[SourceTitle "playchess.com"]
[Source "ChessBase"]
[SourceQuality "1"]
[TimeControl "5400+30"]

1. d4 {[%emt 0:00:04]} Nf6 {[%emt 0:00:07]} 2. c4 {[%emt 0:00:09]} c5 {[%emt 0:00:05]} 3. d5 {[%emt 0:00:13]} e6 {[%emt 0:00:10]} 4. Nc3 {[%emt 0:00:19]} exd5 {[%emt 0:00:02]} 5. cxd5 {[%emt 0:00:09]} d6 {[%emt 0:00:01]} 6. Nf3 {[%emt 0:01:51]} g6 {[%emt 0:00:04]} 7. Nd2 {[%emt 0:00:46]} Bg7 {[%emt 0:01:31]} 8. e4 {[%emt 0:00:17]} O-O {[%emt 0:00:02]} 9. Be2 {[%emt 0:00:13]} a6 {[%emt 0:00:13]} 10. a4 {[%emt 0:00:08]} Re8 {[%emt 0:00:15]} 11. Qc2 {[%emt 0:00:59]} Nbd7 {[%emt 0:00:48]} 12. O-O {[%emt 0:00:29]} Ne5 {[%emt 0:01:15]} 13. Ra3 {[%emt 0:02:37]} g5 {[%emt 0:03:30]} 14. a5 {[%emt 0:09:50]} h6 {[%emt 0:00:27]} 15. Re1 {[%emt 0:01:27]} Bd7 {[%emt 0:09:39]} 16. Nf1 {[%emt 0:17:45]} Ng6 {[%emt 0:14:36]} 17. Ne3 {[%emt 0:01:24]} Nf4 {[%emt 0:04:24]} 18. Bf1 {[%emt 0:01:00]} Ng4 {[%emt 0:04:58]} 19. Nxg4 {[%emt 0:19:56]} Bxg4 {[%emt 0:00:02]} 20. Be3 {[%emt 0:02:16]} Rb8 {[%emt 0:11:17]} 21. Rea1 {[%emt 0:01:21]} Qe7 {[%emt 0:01:58]} 22. f3 {[%emt 0:04:32]} Bd7 {[%emt 0:02:32]} 23. Bf2 {[%emt 0:04:57]} Rbc8 {[%emt 0:01:39]} 24. Rb3 {[%emt 0:01:18]} Rc7 {[%emt 0:00:01]} 25. Rb6 {[%emt 0:00:43]} Be5 {[%emt 0:12:21]} 26. Nd1 {[%emt 0:02:00]} Bc8 {[%emt 0:12:31]} 27. Ne3 {[%emt 0:01:06]} Rd7 {[%emt 0:02:50]} 28. Nc4 {[%emt 0:03:38]} Bg7 {[%emt 0:03:37]} 29. g3 {[%emt 0:00:39]} Ng6 {[%emt 0:00:21]} 30. Bh3 {[%emt 0:00:21]} Ne5 {[%emt 0:08:21]} 31. Nxe5 {[%emt 0:00:38]} Bxe5 {[%emt 0:01:37]} 32. Bxd7 {[%emt 0:01:00]} Qxd7 {[%emt 0:00:02]} 33. Rc1 {[%emt 0:01:36]} Qh3 {[%emt 0:00:53]} 34. b4 {[%emt 0:01:51]} cxb4 {[%emt 0:03:04]} 35. Rxb4 {[%emt 0:00:48]} f5 {[%emt 0:00:28]} 36. Rc4 {[%emt 0:00:24]} Bd7 {[%emt 0:00:01]} 37. Bd4 {[%emt 0:04:52]} Bxd4+ {[%emt 0:00:58]} 38. Rxd4 {[%emt 0:00:02]} f4 {[%emt 0:00:01]} 39. Qg2 {[%emt 0:00:37]} Qh5 {[%emt 0:00:46]} 40. g4 {[%emt 0:00:47]} Qg6 {[%emt 0:00:16]} 41. Rc7 {[%emt 0:00:45]} Qf6 {[%emt 0:00:29]} 42. Qb2 {[%emt 0:00:32]} Bxg4 {[%emt 0:01:39]} 43. fxg4 {[%emt 0:00:08]} Rxe4 {[%emt 0:00:02]} 44. Rxe4 {[%emt 0:00:08]} 1-0

[Event "26th Hit Open-A 2022"]
[Site "Nova Gorica"]
[Date "2022.09.15"]
[Round "1.24"]
[White "Herega, Nejc"]
[Black "Rakesh Kumar Jena"]
[Result "1-0"]
[ECO "D45"]
[WhiteElo "2146"]
[BlackElo "2321"]
[Annotator "ChessBase"]
[PlyCount "55"]
[EventDate "2022.09.16"]
[EventType "swiss"]
[EventCountry "SLO"]
[SourceTitle "playchess.com"]
[Source "ChessBase"]
[SourceQuality "1"]
[TimeControl "5400+30"]

1. d4 {[%emt 0:00:11]} d5 {[%emt 0:00:11]} 2. Nf3 {[%emt 0:00:35]} Nf6 {[%emt 0:00:12]} 3. c4 {[%emt 0:00:16]} e6 {[%emt 0:00:04]} 4. Nc3 {[%emt 0:00:05]} Bb4 {[%emt 0:00:05]} 5. e3 {[%emt 0:02:27]} O-O {[%emt 0:00:42]} 6. Bd2 {[%emt 0:00:10]} c6 {[%emt 0:00:28]} 7. Bd3 {[%emt 0:02:49]} a5 {[%emt 0:01:42]} 8. a3 {[%emt 0:03:13]} Bxc3 {[%emt 0:01:15]} 9. Bxc3 {[%emt 0:02:30]} b6 {[%emt 0:07:07]} 10. Nd2 {[%emt 0:10:52]} Nbd7 {[%emt 0:02:50]} 11. e4 {[%emt 0:06:22]} dxe4 {[%emt 0:08:05]} 12. Nxe4 {[%emt 0:06:23]} Nxe4 {[%emt 0:03:35]} 13. Bxe4 {[%emt 0:00:07]} Ba6 {[%emt 0:00:21]} 14. Bxc6 {[%emt 0:08:27]} Bxc4 {[%emt 0:00:43]} 15. Bxa8 {[%emt 0:08:11]} Qxa8 {[%emt 0:00:07]} 16. f3 {[%emt 0:03:07]} Rd8 {[%emt 0:12:10]} 17. Qc2 {[%emt 0:03:27]} Qd5 {[%emt 0:00:42]} 18. Kf2 {[%emt 0:03:10]} e5 {[%emt 0:00:38]} 19. Qf5 {[%emt 0:08:35]} g6 {[%emt 0:32:14]} 20. Qg5 {[%emt 0:04:54]} f6 {[%emt 0:08:15]} 21. Qh4 {[%emt 0:04:58]} g5 {[%emt 0:10:27]} 22. Qe4 {[%emt 0:06:23]} Qxe4 {[%emt 0:03:04]} 23. fxe4 {[%emt 0:00:06]} exd4 {[%emt 0:00:04]} 24. Bxd4 {[%emt 0:00:35]} Ne5 {[%emt 0:02:30]} 25. Bxe5 {[%emt 0:07:39]} Rd2+ {[%emt 0:00:05]} 26. Kg3 {[%emt 0:01:54]} Rd3+ {[%emt 0:00:37]} 27. Kg4 {[%emt 0:00:55]} Kg7 {[%emt 0:00:16]} 28. Kf5 {[%emt 0:02:38]} 1-0

[Event "26th Hit Open-A 2022"]
[Site "Nova Gorica"]
[Date "2022.09.15"]
[Round "1.25"]
[White "Schloffer, Jasmin-Denise"]
[Black "Alexandrova, Angelina"]
[Result "1-0"]
[ECO "D90"]
[WhiteElo "2127"]
[BlackElo "1842"]
[Annotator "ChessBase"]
[PlyCount "67"]
[EventDate "2022.09.16"]
[EventType "swiss"]
[EventCountry "SLO"]
[SourceTitle "playchess.com"]
[Source "ChessBase"]
[SourceQuality "1"]
[TimeControl "5400+30"]

1. d4 {[%emt 0:00:03]} d5 {[%emt 0:00:07]} 2. c4 {[%emt 0:00:05]} c6 {[%emt 0:00:15]} 3. cxd5 {[%emt 0:00:06]} cxd5 {[%emt 0:00:07]} 4. Bf4 {[%emt 0:00:10]} Nc6 {[%emt 0:00:55]} 5. Nc3 {[%emt 0:00:26]} a6 {[%emt 0:00:39]} 6. Nf3 {[%emt 0:00:12]} g6 {[%emt 0:00:46]} 7. e3 {[%emt 0:02:27]} Bg7 {[%emt 0:00:19]} 8. Rc1 {[%emt 0:00:10]} Nf6 {[%emt 0:00:32]} 9. Bd3 {[%emt 0:00:15]} O-O {[%emt 0:02:35]} 10. O-O {[%emt 0:00:32]} Nh5 {[%emt 0:01:10]} 11. Bg5 {[%emt 0:01:19]} Qd6 {[%emt 0:01:38]} 12. Qb3 {[%emt 0:06:41]} Be6 {[%emt 0:09:50]} 13. Na4 {[%emt 0:04:08]} Nb4 {[%emt 0:11:36]} 14. Bb1 {[%emt 0:01:33]} Rfb8 {[%emt 0:03:50]} 15. a3 {[%emt 0:05:59]} b5 {[%emt 0:00:43]} 16. Nc5 {[%emt 0:02:48]} Nc6 {[%emt 0:00:29]} 17. Nxe6 {[%emt 0:02:44]} fxe6 {[%emt 0:02:39]} 18. Qc3 {[%emt 0:11:52]} Rb6 {[%emt 0:03:41]} 19. g4 {[%emt 0:03:39]} Nf6 {[%emt 0:01:43]} 20. Bf4 {[%emt 0:02:06]} Qd7 {[%emt 0:02:56]} 21. h3 {[%emt 0:02:49]} b4 {[%emt 0:03:11]} 22. Qc5 {[%emt 0:02:39]} Qb7 {[%emt 0:01:04]} 23. axb4 {[%emt 0:05:16]} Nd7 {[%emt 0:03:25]} 24. Qc3 {[%emt 0:00:44]} Nxb4 {[%emt 0:02:51]} 25. Qc7 {[%emt 0:01:48]} a5 {[%emt 0:07:00]} 26. Rc3 {[%emt 0:07:10]} Na6 {[%emt 0:02:05]} 27. Qxb7 {[%emt 0:00:11]} Rxb7 {[%emt 0:00:02]} 28. b3 {[%emt 0:00:08]} Nac5 {[%emt 0:09:34]} 29. Bc2 {[%emt 0:11:05]} Ne4 {[%emt 0:02:55]} 30. Rc6 {[%emt 0:00:37]} Ndf6 {[%emt 0:09:00]} 31. Rc1 {[%emt 0:02:22]} Kf7 {[%emt 0:03:20]} 32. Ne5+ {[%emt 0:02:23]} Ke8 {[%emt 0:00:25]} 33. Bxe4 {[%emt 0:00:24]} Nxe4 {[%emt 0:02:00]} 34. Rc8+ {[%emt 0:00:06]} 1-0

[Event "26th Hit Open-A 2022"]
[Site "Nova Gorica"]
[Date "2022.09.15"]
[Round "1.26"]
[White "Azinovic, Igor"]
[Black "Acimovic, Sergej"]
[Result "0-1"]
[ECO "C44"]
[WhiteElo "1814"]
[BlackElo "2114"]
[Annotator "ChessBase"]
[PlyCount "44"]
[EventDate "2022.09.16"]
[EventType "swiss"]
[EventCountry "SLO"]
[SourceTitle "playchess.com"]
[Source "ChessBase"]
[SourceQuality "1"]
[TimeControl "5400+30"]

1. e4 {[%emt 0:00:12]} e5 {[%emt 0:00:12]} 2. Nf3 {[%emt 0:00:15]} Nc6 {[%emt 0:00:11]} 3. c3 {[%emt 0:00:13]} d5 {[%emt 0:02:57]} 4. Qa4 {[%emt 0:00:47]} dxe4 {[%emt 0:17:48]} 5. Nxe5 {[%emt 0:03:59]} Qd5 {[%emt 0:01:00]} 6. Bb5 {[%emt 0:03:35]} Nge7 {[%emt 0:02:22]} 7. Nxc6 {[%emt 0:04:20]} bxc6 {[%emt 0:05:39]} 8. Be2 {[%emt 0:04:24]} Bd7 {[%emt 0:04:01]} 9. O-O {[%emt 0:02:12]} Ng6 {[%emt 0:09:15]} 10. f3 {[%emt 0:04:27]} Nf4 {[%emt 0:21:00]} 11. Re1 {[%emt 0:04:33]} Bc5+ {[%emt 0:06:56]} 12. Kh1 {[%emt 0:02:29]} O-O {[%emt 0:04:04]} 13. Qxe4 {[%emt 0:03:29]} Qg5 {[%emt 0:02:13]} 14. g3 {[%emt 0:01:40]} Nxe2 {[%emt 0:00:31]} 15. Qxe2 {[%emt 0:02:00]} Rae8 {[%emt 0:00:09]} 16. Qd1 {[%emt 0:00:21]} Rxe1+ {[%emt 0:00:30]} 17. Qxe1 {[%emt 0:00:13]} Re8 {[%emt 0:00:05]} 18. Qd1 {[%emt 0:11:27]} Qf5 {[%emt 0:04:29]} 19. d4 {[%emt 0:01:05]} Re1+ {[%emt 0:00:46]} 20. Qxe1 {[%emt 0:00:27]} Qxf3+ {[%emt 0:00:05]} 21. Kg1 {[%emt 0:00:43]} Bh3 {[%emt 0:00:06]} 22. Qe8+ {[%emt 0:00:24]} Bf8 {[%emt 0:00:06]} 0-1

[Event "26th Hit Open-A 2022"]
[Site "Nova Gorica"]
[Date "2022.09.15"]
[Round "1.27"]
[White "Krivenko, Dion"]
[Black "Di Lascio, Savino"]
[Result "1-0"]
[ECO "B12"]
[WhiteElo "2113"]
[BlackElo "1793"]
[Annotator "ChessBase"]
[PlyCount "65"]
[EventDate "2022.09.16"]
[EventType "swiss"]
[EventCountry "SLO"]
[SourceTitle "playchess.com"]
[Source "ChessBase"]
[SourceQuality "1"]
[TimeControl "5400+30"]

1. e4 {[%emt 0:00:19]} c6 {[%emt 0:00:23]} 2. d4 {[%emt 0:00:11]} d5 {[%emt 0:00:08]} 3. e5 {[%emt 0:00:04]} Bf5 {[%emt 0:00:31]} 4. Bd3 Bxd3 {[%emt 0:00:00]} 5. Qxd3 {[%emt 0:00:16]} e6 {[%emt 0:00:10]} 6. Ne2 {[%emt 0:00:08]} Qa5+ {[%emt 0:00:23]} 7. Nbc3 {[%emt 0:00:15]} Qa6 {[%emt 0:00:18]} 8. Qh3 {[%emt 0:00:12]} Ne7 {[%emt 0:01:30]} 9. O-O {[%emt 0:01:28]} Nd7 {[%emt 0:00:23]} 10. a4 {[%emt 0:00:23]} Ng6 {[%emt 0:02:20]} 11. f4 {[%emt 0:08:02]} c5 {[%emt 0:00:30]} 12. Nb5 {[%emt 0:00:30]} Qb6 {[%emt 0:00:30]} 13. f5 {[%emt 0:00:30]} Ngxe5 {[%emt 0:00:30]} 14. dxe5 {[%emt 0:00:30]} Nxe5 {[%emt 0:00:30]} 15. Bf4 {[%emt 0:00:30]} a6 {[%emt 0:00:30]} 16. Bxe5 {[%emt 0:00:30]} axb5 {[%emt 0:00:30]} 17. fxe6 {[%emt 0:00:30]} f6 {[%emt 0:00:30]} 18. Bg3 {[%emt 0:34:51]} Rxa4 {[%emt 0:14:45]} 19. Qh5+ {[%emt 0:00:30]} g6 {[%emt 0:00:30]} 20. Qxd5 {[%emt 0:00:30]} c4+ {[%emt 0:00:30]} 21. Kh1 {[%emt 0:00:27]} Qc6 {[%emt 0:04:38]} 22. Qxc6+ {[%emt 0:00:41]} bxc6 {[%emt 0:00:10]} 23. Rxa4 {[%emt 0:00:04]} bxa4 {[%emt 0:00:10]} 24. Ra1 {[%emt 0:00:37]} Ke7 {[%emt 0:00:42]} 25. Rxa4 {[%emt 0:00:18]} Kxe6 {[%emt 0:00:13]} 26. Rxc4 {[%emt 0:00:14]} c5 {[%emt 0:00:50]} 27. h3 {[%emt 0:00:49]} Be7 {[%emt 0:00:19]} 28. Nf4+ {[%emt 0:00:42]} Kd7 {[%emt 0:02:33]} 29. Nd5 Bd6 {[%emt 0:00:30]} 30. Nxf6+ {[%emt 0:00:18]} Kc6 {[%emt 0:00:32]} 31. Bxd6 {[%emt 0:00:09]} Kxd6 {[%emt 0:00:12]} 32. Ne4+ {[%emt 0:00:04]} Kd5 {[%emt 0:00:16]} 33. b3 {[%emt 0:00:10]} 1-0

[Event "26th Hit Open-A 2022"]
[Site "Nova Gorica"]
[Date "2022.09.15"]
[Round "1.28"]
[White "Fiolo, Costanza"]
[Black "Rozman, Monika"]
[Result "0-1"]
[ECO "A11"]
[WhiteElo "1768"]
[BlackElo "2111"]
[Annotator "ChessBase"]
[PlyCount "70"]
[EventDate "2022.09.16"]
[EventType "swiss"]
[EventCountry "SLO"]
[SourceTitle "playchess.com"]
[Source "ChessBase"]
[SourceQuality "1"]
[TimeControl "5400+30"]

1. Nf3 {[%emt 0:00:05]} d5 {[%emt 0:00:06]} 2. g3 {[%emt 0:00:16]} Nf6 {[%emt 0:00:04]} 3. Bg2 {[%emt 0:00:13]} Bf5 {[%emt 0:00:21]} 4. O-O {[%emt 0:00:33]} e6 {[%emt 0:00:46]} 5. c4 {[%emt 0:01:16]} c6 {[%emt 0:00:25]} 6. cxd5 {[%emt 0:00:25]} exd5 {[%emt 0:00:25]} 7. d3 {[%emt 0:01:18]} Be7 {[%emt 0:02:37]} 8. Qb3 {[%emt 0:00:49]} Qb6 {[%emt 0:00:44]} 9. Qc2 {[%emt 0:00:20]} Na6 {[%emt 0:02:43]} 10. a3 {[%emt 0:03:49]} O-O {[%emt 0:02:18]} 11. Nc3 {[%emt 0:00:52]} Rfe8 {[%emt 0:02:29]} 12. Bf4 {[%emt 0:05:26]} Rac8 {[%emt 0:07:03]} 13. e4 {[%emt 0:08:44]} dxe4 {[%emt 0:02:57]} 14. dxe4 {[%emt 0:01:50]} Be6 {[%emt 0:00:15]} 15. Be3 {[%emt 0:07:30]} Bb3 {[%emt 0:07:08]} 16. Qe2 {[%emt 0:07:43]} Bc5 {[%emt 0:01:25]} 17. Bxc5 {[%emt 0:15:54]} Nxc5 {[%emt 0:00:14]} 18. Rfe1 {[%emt 0:07:23]} Ncxe4 {[%emt 0:03:24]} 19. Nxe4 {[%emt 0:00:37]} Rxe4 {[%emt 0:00:20]} 20. Qd3 {[%emt 0:01:06]} Rd8 {[%emt 0:04:49]} 21. Qc3 {[%emt 0:03:21]} h6 {[%emt 0:07:34]} 22. Rxe4 {[%emt 0:09:06]} Nxe4 {[%emt 0:00:09]} 23. Qe1 {[%emt 0:01:09]} Nf6 {[%emt 0:00:50]} 24. Nh4 {[%emt 0:02:52]} Qd4 {[%emt 0:04:30]} 25. Qe7 {[%emt 0:04:36]} Rd7 {[%emt 0:04:25]} 26. Qe2 {[%emt 0:02:41]} Qd2 {[%emt 0:02:23]} 27. Qe5 {[%emt 0:01:27]} Qxf2+ {[%emt 0:00:56]} 28. Kh1 {[%emt 0:02:47]} Bd5 {[%emt 0:01:57]} 29. Re1 {[%emt 0:09:16]} Bxg2+ {[%emt 0:02:11]} 30. Nxg2 {[%emt 0:00:24]} Rd2 {[%emt 0:00:07]} 31. Rg1 {[%emt 0:00:43]} Rxb2 {[%emt 0:01:08]} 32. Qb8+ {[%emt 0:00:25]} Kh7 {[%emt 0:00:06]} 33. Qf8 {[%emt 0:00:30]} Ng4 {[%emt 0:03:58]} 34. Qe7 {[%emt 0:00:40]} Qf5 {[%emt 0:03:58]} 35. Re1 {[%emt 0:01:04]} Qf3 {[%emt 0:00:09]} 0-1

[Event "26th Hit Open-A 2022"]
[Site "Nova Gorica"]
[Date "2022.09.15"]
[Round "1.29"]
[White "Centrih, Aleks"]
[Black "Ivsek, Cveto"]
[Result "1-0"]
[ECO "B30"]
[WhiteElo "2095"]
[BlackElo "1763"]
[Annotator "ChessBase"]
[PlyCount "53"]
[EventDate "2022.09.16"]
[EventType "swiss"]
[EventCountry "SLO"]
[SourceTitle "playchess.com"]
[Source "ChessBase"]
[SourceQuality "1"]
[TimeControl "5400+30"]

1. e4 {[%emt 0:00:09]} c5 {[%emt 0:00:13]} 2. Nf3 {[%emt 0:00:06]} Nc6 {[%emt 0:00:58]} 3. Bb5 {[%emt 0:00:11]} a6 {[%emt 0:05:25]} 4. Bxc6 {[%emt 0:01:01]} dxc6 {[%emt 0:00:23]} 5. d3 {[%emt 0:03:19]} Bg4 {[%emt 0:01:12]} 6. O-O {[%emt 0:02:06]} e6 {[%emt 0:01:07]} 7. a4 {[%emt 0:05:58]} Bxf3 {[%emt 0:18:28]} 8. Qxf3 {[%emt 0:00:10]} Qf6 {[%emt 0:00:11]} 9. Qe2 {[%emt 0:11:40]} g6 {[%emt 0:06:30]} 10. a5 {[%emt 0:00:19]} Rd8 {[%emt 0:05:25]} 11. Na3 {[%emt 0:01:29]} Ne7 {[%emt 0:04:09]} 12. Nc4 {[%emt 0:01:37]} Nc8 {[%emt 0:00:36]} 13. Bd2 {[%emt 0:12:00]} Rg8 {[%emt 0:20:12]} 14. f4 {[%emt 0:05:52]} Qe7 {[%emt 0:00:00]} 15. Be3 {[%emt 0:08:28]} Bg7 {[%emt 0:00:00]} 16. c3 {[%emt 0:05:00]} Bh6 {[%emt 0:00:00]} 17. Rad1 {[%emt 0:00:39]} g5 {[%emt 0:01:43]} 18. f5 {[%emt 0:00:48]} e5 {[%emt 0:01:04]} 19. f6 {[%emt 0:00:09]} Qe6 {[%emt 0:01:04]} 20. Rf5 {[%emt 0:00:24]} Kd7 {[%emt 0:01:02]} 21. Bxc5 {[%emt 0:02:51]} Kc7 {[%emt 0:02:10]} 22. Rdf1 {[%emt 0:05:38]} Bf8 {[%emt 0:02:36]} 23. Bxf8 {[%emt 0:00:49]} Rgxf8 {[%emt 0:00:09]} 24. Rxe5 {[%emt 0:00:08]} Qd7 {[%emt 0:00:27]} 25. d4 {[%emt 0:00:58]} b5 {[%emt 0:00:47]} 26. axb6+ {[%emt 0:00:00]} Nxb6 27. Re7 {[%emt 0:00:26]} 1-0